bitfinex/quotes_SOLUSD_20260211
["timestamp","ask_amount","ask_price","bid_price","bid_amount"]
[1770786243825,3.20689032,82.217,82.185,3.16002526]
[1770786245619,12.16278673,82.218,82.164,12.1706581]
[1770786245620,3.20689032,82.199,82.164,12.1706581]
[1770786245821,3.20689032,82.189,82.164,12.1706581]
[1770786246124,60.80775996,82.227,82.14,103.11102043]
[1770786246125,3.20689032,82.208,82.171,3.16002526]
[1770786246514,3.20689032,82.208,82.18,9.7677805]
[1770786246722,3.20689032,82.208,82.181,3.16002526]
[1770786247623,10.1,82.21,82.191,3.16002526]
[1770786248124,10.1,82.21,82.193,3.16002526]
[1770786250215,10.1,82.21,82.191,3.16002526]
[1770786250531,8.6354222,82.21,82.2,9.7677805]
[1770786250730,8.6354222,82.21,82.199,3.16002526]
[1770786250731,8.6354222,82.21,82.191,3.16002526]
[1770786251030,3.20689032,82.218,82.191,3.16002526]
[1770786251432,3.20689032,82.218,82.19,9.7677805]
[1770786251610,3.20689032,82.217,82.179,30.42112145]
[1770786251818,3.20689032,82.199,82.174,12.16916539]
[1770786252017,3.20689032,82.199,82.175,3.16002526]
[1770786252219,3.20689032,82.209,82.18,9.7677805]
[1770786253028,3.20689032,82.208,82.177,3.16002526]
[1770786254042,3.20689032,82.208,82.176,12.16900311]
[1770786254233,3.20689032,82.206,82.171,12.16974358]
[1770786254739,3.20689032,82.206,82.158,5.13032502]
[1770786254740,3.20689032,82.199,82.164,12.17067922]
[1770786255140,3.20689032,82.189,82.16,12.92780576]
[1770786255355,3.20689032,82.189,82.161,3.16002526]
[1770786255929,3.20689032,82.189,82.162,12.17099437]
[1770786257641,3.20689032,82.189,82.162,15.33101963]
[1770786259951,12.16722635,82.188,82.155,3.16002526]
[1770786260246,3.24776537,82.187,82.156,3.23589866]
[1770786260453,3.24776537,82.187,82.156,15.40776819]
[1770786260947,3.24776537,82.187,82.156,3.23589866]
[1770786261143,3.24776537,82.187,82.151,12.17258569]
[1770786261532,9.7677805,82.18,82.155,12.17208984]
[1770786261732,3.24776537,82.169,82.144,12.17361429]
[1770786261922,3.24776537,82.169,82.139,12.17445727]
[1770786262132,3.24776537,82.169,82.135,42.14]
[1770786262449,3.24776537,82.169,82.122,30.44232157]
[1770786262450,3.24776537,82.159,82.129,3.23589866]
[1770786262649,3.24776537,82.167,82.142,12.17395792]
[1770786263348,3.24776537,82.177,82.146,3.23589866]
[1770786263546,3.24776537,82.177,82.151,3.23589866]
[1770786263729,3.24776537,82.177,82.153,3.23589866]
[1770786263931,8.7,82.18,82.153,3.23589866]
[1770786264753,11.98486496,82.18,82.153,3.23589866]
[1770786266335,11.98486496,82.18,82.155,3.45163873]
[1770786266750,3.28486496,82.179,82.149,12.17289747]
[1770786267148,3.28486496,82.178,82.149,12.17289747]
[1770786267648,3.28486496,82.178,82.145,3.45163873]
[1770786267831,8.7,82.18,82.155,3.45163873]
[1770786268035,8.7,82.18,82.161,3.45163873]
[1770786268234,12.16855887,82.179,82.152,3.45163873]
[1770786268445,3.28486496,82.178,82.147,12.17328405]
[1770786268843,3.28486496,82.178,82.148,3.45163873]
[1770786269047,8.7,82.18,82.161,3.45163873]
[1770786269241,8.7,82.18,82.154,3.45163873]
[1770786269753,8.7,82.18,82.161,3.45163873]
[1770786270053,8.7,82.18,82.151,42.60447224]
[1770786270054,3.28486496,82.203,82.171,3.45163873]
[1770786270371,9.76616983,82.21,82.171,3.45163873]
[1770786270372,3.28486496,82.199,82.172,12.16959548]
[1770786270738,3.28486496,82.199,82.18,9.76616983]
[1770786271251,3.28486496,82.208,82.173,3.45163873]
[1770786271443,3.28486496,82.208,82.172,12.16959548]
[1770786271444,3.28486496,82.216,82.19,9.76616983]
[1770786271653,3.28486496,82.214,82.18,9.76616983]
[1770786271850,3.28486496,82.214,82.181,3.45163873]
[1770786272350,3.28486496,82.214,82.19,9.76616983]
[1770786272548,3.28486496,82.214,82.183,3.45163873]
[1770786272945,3.28486496,82.212,82.182,12.16811467]
[1770786273153,3.28486496,82.212,82.18,9.76616983]
[1770786273345,3.28486496,82.212,82.177,12.16873286]
[1770786273346,3.28486496,82.209,82.175,3.45163873]
[1770786273546,3.28486496,82.199,82.167,54.29019276]
[1770786273945,42.57234256,82.213,82.18,9.76616983]
[1770786273946,3.28486496,82.209,82.18,9.76616983]
[1770786274258,12.16426625,82.208,82.18,13.21780856]
[1770786274456,12.16426625,82.208,82.182,3.45163873]
[1770786274855,3.28486496,82.216,82.182,3.45163873]
[1770786275045,3.28486496,82.216,82.19,3.6424121]
[1770786275754,3.28486496,82.216,82.188,3.45163873]
[1770786275947,3.28486496,82.216,82.19,3.6424121]
[1770786276265,3.28486496,82.216,82.191,12.16678225]
[1770786276765,3.28486496,82.227,82.192,3.45163873]
[1770786277062,3.28486496,82.227,82.201,3.45163873]
[1770786278267,3.28486496,82.227,82.202,12.16515413]
[1770786278452,3.28486496,82.227,82.202,15.61679286]
[1770786278652,3.28486496,82.227,82.203,3.45163873]
[1770786279457,3.28486496,82.236,82.205,3.45163873]
[1770786279971,3.28486496,82.236,82.21,9.75179266]
[1770786280150,15.44274013,82.252,82.221,3.45163873]
[1770786280350,3.28486496,82.252,82.221,3.45163873]
[1770786280551,12.15672654,82.259,82.231,3.45163873]
[1770786280951,3.28486496,82.258,82.231,3.45163873]
[1770786281571,3.28486496,82.258,82.229,12.16113002]
[1770786281572,3.28486496,82.256,82.224,12.16175397]
[1770786281951,3.28486496,82.256,82.224,15.6133927]
[1770786282152,3.28486496,82.256,82.225,3.45163873]
[1770786283366,12.15702007,82.257,82.214,12.1633187]
[1770786283367,12.15835035,82.248,82.214,12.1633187]
[1770786283572,3.28486496,82.239,82.214,12.1633187]
[1770786284565,3.28486496,82.239,82.215,3.45163873]
[1770786284771,15.44321531,82.248,82.221,3.45163873]
[1770786285474,12.15835035,82.248,82.221,3.45163873]
[1770786285981,3.28486496,82.256,82.23,9.75179266]
[1770786286167,3.28486496,82.256,82.23,13.20343139]
[1770786286367,3.28486496,82.263,82.231,3.45163873]
[1770786289557,3.28486496,82.268,82.241,3.45163873]
[1770786290175,3.28486496,82.268,82.222,30.40548758]
[1770786290176,3.28486496,82.268,82.233,3.45163873]
[1770786290668,12.15531564,82.269,82.25,9.75179266]
[1770786290876,12.15531564,82.269,82.251,3.28161021]
[1770786291062,12.15531564,82.269,82.25,9.75179266]
[1770786291263,12.15531564,82.269,82.245,3.28161021]
[1770786291465,3.25173097,82.274,82.245,3.28161021]
[1770786292081,3.25173097,82.274,82.24,21.91126058]
[1770786292082,3.25173097,82.269,82.233,15.44210671]
[1770786292575,3.25173097,82.269,82.237,12.15995155]
[1770786293480,3.25173097,82.269,82.24,9.75179266]
[1770786293658,3.25173097,82.269,82.241,12.15936617]
[1770786293978,3.25173097,82.267,82.24,9.75179266]
[1770786295375,3.25173097,82.265,82.231,3.28161021]
[1770786297084,12.15569007,82.266,82.241,3.28161021]
[1770786298279,15.40653454,82.272,82.241,3.28161021]
[1770786298461,15.40653454,82.272,82.221,30.40570075]
[1770786298462,12.15480357,82.272,82.251,3.28161021]
[1770786298656,12.15412322,82.277,82.251,3.28161021]
[1770786299579,12.15344014,82.282,82.251,3.28161021]
[1770786299781,12.15344014,82.282,82.26,3.63633129]
[1770786300179,3.25173097,82.281,82.25,3.63633129]
[1770786300363,3.25173097,82.279,82.241,3.28161021]
[1770786300557,3.25173097,82.279,82.251,3.28161021]
[1770786302377,3.25173097,82.277,82.251,3.28161021]
[1770786303077,3.25173097,82.277,82.243,3.28161021]
[1770786303273,3.25173097,82.277,82.24,6.9179415]
[1770786303462,3.25173097,82.277,82.24,19.07734169]
[1770786303664,3.25173097,82.277,82.251,3.28161021]
[1770786303885,12.1539172,82.278,82.251,3.28161021]
[1770786304384,60.75407963,82.299,82.271,3.28161021]
[1770786304385,30.37729866,82.299,82.271,3.28161021]
[1770786304585,33.62902963,82.299,82.271,3.28161021]
[1770786304785,3.25173097,82.298,82.271,3.28161021]
[1770786305481,3.25173097,82.298,82.262,3.28161021]
[1770786306766,3.25173097,82.296,82.262,3.28161021]
[1770786307285,3.25173097,82.296,82.263,3.28161021]
[1770786308686,0.1,82.3,82.271,3.28161021]
[1770786309588,0.1,82.3,82.273,3.28161021]
[1770786309785,0.1,82.3,82.281,3.28161021]
[1770786309988,12.14801137,82.318,82.291,3.28161021]
[1770786310284,15.39974234,82.318,82.291,3.28161021]
[1770786310488,12.14801137,82.318,82.291,3.28161021]
[1770786310783,3.25173097,82.317,82.291,3.28161021]
[1770786310987,3.25173097,82.315,82.277,5.13032502]
[1770786311173,3.25173097,82.315,82.281,3.28161021]
[1770786312678,3.25173097,82.315,82.284,3.28161021]
[1770786313370,33.92,82.33,82.28,3.63633129]
[1770786313371,3.25173097,82.328,82.291,3.28161021]
[1770786314089,3.25173097,82.328,82.301,3.28161021]
[1770786315373,3.25173097,82.336,82.311,3.28161021]
[1770786316476,12.1449131,82.339,82.32,3.63633129]
[1770786316800,12.1449131,82.339,82.317,3.28161021]
[1770786318093,3.25173097,82.339,82.301,3.28161021]
[1770786318294,3.25173097,82.329,82.3,3.63633129]
[1770786318588,3.25173097,82.319,82.284,3.28161021]
[1770786318797,3.25173097,82.309,82.276,3.28161021]
[1770786319169,3.25173097,82.309,82.281,3.28161021]
[1770786319480,3.25173097,82.329,82.291,3.28161021]
[1770786319669,3.25173097,82.329,82.31,3.63633129]
[1770786320786,12.1465358,82.328,82.31,3.63633129]
[1770786321185,3.31099115,82.338,82.31,7.13472345]
[1770786321394,3.31099115,82.338,82.311,3.49839216]
[1770786322876,12.1452081,82.337,82.311,3.49839216]
[1770786323299,40.08401995,82.35,82.321,3.49839216]
[1770786323300,12.14442072,82.343,82.321,3.49839216]
[1770786323891,15.45541187,82.343,82.321,3.49839216]
[1770786324284,3.45955183,82.342,82.314,3.34448505]
[1770786325688,3.45955183,82.348,82.321,3.34448505]
[1770786325892,3.45955183,82.348,82.33,9.7257451]
[1770786326095,3.45955183,82.348,82.321,3.34448505]
[1770786326285,15.60213061,82.355,82.33,9.7257451]
[1770786326684,15.60213061,82.355,82.33,13.07023015]
[1770786326889,12.14284846,82.353,82.33,13.07023015]
[1770786327201,3.45955183,82.352,82.33,13.07023015]
[1770786327501,3.45955183,82.352,82.324,3.34448505]
[1770786327708,3.45955183,82.352,82.32,9.7257451]
[1770786327879,3.45955183,82.349,82.311,3.34448505]
[1770786328477,3.45955183,82.349,82.312,12.14884672]
[1770786329594,3.45955183,82.339,82.299,5.13032502]
[1770786329791,3.45955183,82.339,82.234,102.9]
[1770786329792,3.45955183,82.329,82.291,3.34448505]
[1770786329998,3.45955183,82.329,82.31,9.72638102]
[1770786330424,3.45955183,82.347,82.32,9.72638102]
[1770786330906,3.45955183,82.347,82.313,3.34448505]
[1770786333611,12.14388069,82.346,82.32,13.07086607]
[1770786333908,3.45955183,82.346,82.32,13.07086607]
[1770786334104,3.45955183,82.346,82.314,12.14860169]
[1770786334317,3.45955183,82.346,82.314,3.34448505]
[1770786335309,3.45955183,82.339,82.302,3.34448505]
[1770786335503,3.45955183,82.329,82.296,15.49573357]
[1770786335711,3.45955183,82.327,82.3,9.72638102]
[1770786336518,3.45955183,82.327,82.296,3.34448505]
[1770786336894,3.45955183,82.319,82.285,3.34448505]
[1770786337105,3.45955183,82.319,82.271,30.38717383]
[1770786337318,3.45955183,82.319,82.28,9.72638102]
[1770786337897,12.14801137,82.318,82.28,9.72638102]
[1770786338205,3.45955183,82.317,82.28,9.72638102]
[1770786339208,3.45955183,82.315,82.282,3.34448505]
[1770786340120,12.14830652,82.316,82.291,3.34448505]
[1770786340418,12.14765221,82.321,82.291,3.34448505]
[1770786341000,12.14765221,82.321,82.301,3.34448505]
[1770786341198,3.45955183,82.33,82.301,3.34448505]
[1770786343323,12.14638827,82.329,82.301,3.34448505]
[1770786343721,15.6059401,82.329,82.301,3.34448505]
[1770786343927,3.45955183,82.328,82.301,3.34448505]
[1770786344224,12.14638827,82.329,82.272,3.34448505]
[1770786344225,3.45955183,82.309,82.272,3.34448505]
[1770786344611,3.45955183,82.309,82.28,9.72638102]
[1770786344823,3.45955183,82.309,82.281,3.34448505]
[1770786345027,3.45955183,82.309,82.282,15.49770369]
[1770786345325,3.45955183,82.321,82.291,3.34448505]
[1770786346223,12.14822557,82.317,82.291,3.34448505]
[1770786346420,3.45955183,82.316,82.291,3.34448505]
[1770786347711,12.1484541,82.315,82.291,3.34448505]
[1770786348334,3.45955183,82.316,82.291,3.34448505]
[1770786348523,12.14789739,82.319,82.293,3.34448505]
[1770786349627,3.45955183,82.322,82.293,3.34448505]
[1770786350914,15.547847,82.321,82.293,3.34448505]
[1770786352626,3.40027834,82.32,82.293,3.34448505]
[1770786353434,3.63359491,82.32,82.293,3.34448505]
[1770786353622,15.54828971,82.318,82.293,3.34448505]
[1770786353819,3.40027834,82.309,82.286,3.45431488]
[1770786354015,3.40027834,82.317,82.286,3.45431488]
[1770786355219,3.40027834,82.309,82.286,3.45431488]
[1770786355418,3.40027834,82.309,82.287,15.60690277]
[1770786355732,3.40027834,82.309,82.288,3.45431488]
[1770786356722,3.40027834,82.299,82.262,15.61058122]
[1770786356926,3.40027834,82.289,82.262,15.61058122]
[1770786358934,3.40027834,82.289,82.263,3.45431488]
[1770786359928,3.40027834,82.289,82.264,12.1559856]
[1770786360116,3.40027834,82.289,82.265,3.45431488]
[1770786360318,3.40027834,82.279,82.247,3.45431488]
[1770786360734,3.40027834,82.279,82.251,3.45431488]
[1770786361235,3.40027834,82.279,82.256,3.45431488]
[1770786361443,3.40027834,82.287,82.26,3.45431488]
[1770786361614,3.63351593,82.31,82.271,3.45431488]
[1770786361817,3.40027834,82.309,82.271,3.45431488]
[1770786362021,3.40027834,82.307,82.273,3.45431488]
[1770786362419,3.40027834,82.314,82.281,3.45431488]
[1770786362717,3.40027834,82.309,82.281,3.45431488]
[1770786362918,3.40027834,82.299,82.274,3.45431488]
[1770786363426,3.40027834,82.289,82.267,12.15553253]
[1770786363743,3.40027834,82.286,82.265,12.15569758]
[1770786365052,3.40027834,82.279,82.256,12.15716664]
[1770786365539,3.40027834,82.279,82.257,3.45431488]
[1770786365720,15.55316161,82.285,82.26,3.45431488]
[1770786365921,3.40027834,82.285,82.26,3.45431488]
[1770786366436,7.03379427,82.3,82.271,3.45431488]
[1770786366736,3.40027834,82.3,82.271,3.45431488]
[1770786366918,3.40027834,82.309,82.273,3.45431488]
[1770786367342,3.40027834,82.309,82.272,12.15480357]
[1770786367343,3.63351593,82.32,82.291,3.45431488]
[1770786367642,3.40027834,82.318,82.284,3.45431488]
[1770786368452,3.40027834,82.309,82.276,3.45431488]
[1770786369226,3.40027834,82.299,82.275,41.58]
[1770786369428,12.14948729,82.308,82.276,3.45431488]
[1770786369625,3.63351593,82.31,82.281,3.45431488]
[1770786369941,3.40027834,82.314,82.281,3.45431488]
[1770786371428,3.40027834,82.314,82.283,3.45431488]
[1770786372349,7.03379427,82.32,82.283,3.45431488]
[1770786372642,3.40027834,82.319,82.283,3.45431488]
[1770786372947,3.40027834,82.318,82.283,3.45431488]
[1770786373550,3.40027834,82.318,82.285,3.45431488]
[1770786374544,34.2,82.349,82.275,41.58]
[1770786374545,3.40027834,82.309,82.286,12.15273558]
[1770786374750,3.63351593,82.3,82.286,12.15273558]
[1770786374922,3.40027834,82.299,82.275,41.58]
[1770786375122,3.63351593,82.29,82.275,41.58]
[1770786375343,3.63351593,82.29,82.274,12.15450743]
[1770786375550,3.63351593,82.3,82.279,3.45431488]
[1770786376543,42.5185563,82.317,82.279,3.45431488]
[1770786376544,15.5499143,82.307,82.279,3.45431488]
[1770786376844,3.63351593,82.3,82.279,3.45431488]
[1770786378553,3.40027834,82.306,82.281,3.45431488]
[1770786378743,3.63351593,82.3,82.281,3.45431488]
[1770786381468,3.55526787,82.313,82.283,3.26100432]
[1770786381633,3.63351593,82.31,82.283,3.26100432]
[1770786382562,3.55526787,82.313,82.283,3.26100432]
[1770786383133,3.63351593,82.32,82.285,3.26100432]
[1770786384353,3.63351593,82.33,82.293,5.13032502]
[1770786384532,3.63351593,82.33,82.294,3.56493345]
[1770786384729,3.63351593,82.34,82.294,3.56493345]
[1770786384946,3.53386311,82.345,82.304,3.56493345]
[1770786385135,3.53386311,82.345,82.306,3.56493345]
[1770786386355,3.53386311,82.339,82.306,3.56493345]
[1770786386558,3.63351593,82.34,82.306,3.56493345]
[1770786387637,3.63351593,82.34,82.308,3.56493345]
[1770786387837,3.53386311,82.343,82.308,3.56493345]
[1770786388853,7.16419919,82.35,82.313,5.13032502]
[1770786389051,7.16419919,82.35,82.314,3.56493345]
[1770786390037,3.53386311,82.35,82.316,3.56493345]
[1770786390354,3.53386311,82.349,82.316,3.56493345]
[1770786390741,3.53386311,82.339,82.315,12.1484541]
[1770786392941,3.53386311,82.339,82.316,3.56493345]
[1770786393660,3.53386311,82.346,82.316,3.56493345]
[1770786393851,3.53386311,82.353,82.316,3.56493345]
[1770786394054,3.63033608,82.35,82.316,3.56493345]
[1770786394357,3.53386311,82.34,82.316,3.56493345]
[1770786394657,3.53386311,82.349,82.316,3.56493345]
[1770786395160,3.53386311,82.349,82.318,3.56493345]
[1770786396358,3.53386311,82.339,82.317,12.14815894]
[1770786396855,3.53386311,82.346,82.318,3.56493345]
[1770786397059,3.53386311,82.349,82.319,12.14786379]
[1770786397252,3.53386311,82.346,82.32,3.56493345]
[1770786398350,3.53386311,82.346,82.321,12.14756866]
[1770786398849,7.16419919,82.34,82.321,12.14756866]
[1770786399064,3.53386311,82.34,82.321,12.14756866]
[1770786399449,3.53386311,82.339,82.313,3.56493345]
[1770786400062,3.53386311,82.339,82.301,3.56493345]
[1770786400269,12.14396347,82.346,82.295,30.37845606]
[1770786400270,3.53386311,82.319,82.295,30.37845606]
[1770786400864,3.53386311,82.309,82.289,12.15229252]
[1770786403749,3.53386311,82.309,82.289,15.71722597]
[1770786404564,3.53386311,82.319,82.289,15.71722597]
[1770786404763,3.53386311,82.327,82.29,3.56493345]
[1770786405266,3.53386311,82.327,82.292,3.56493345]
[1770786406987,3.53386311,82.326,82.294,3.56493345]
[1770786407581,3.63033608,82.33,82.294,3.56493345]
[1770786407773,7.16419919,82.34,82.297,3.56493345]
[1770786408068,3.53386311,82.339,82.299,3.56493345]
[1770786408276,3.53386311,82.329,82.299,3.56493345]
[1770786408749,3.53386311,82.319,82.298,41.92]
[1770786408955,3.53386311,82.319,82.299,12.15081592]
[1770786409154,3.53386311,82.319,82.299,15.71574937]
[1770786409970,3.53386311,82.319,82.299,12.15081592]
[1770786410354,3.44973618,82.329,82.3,3.39963393]
[1770786411673,3.44973618,82.339,82.302,3.39963393]
[1770786412058,3.63033608,82.33,82.302,3.39963393]
[1770786412261,3.63033608,82.33,82.301,12.15052064]
[1770786412262,3.44973618,82.329,82.301,12.15052064]
[1770786412472,3.44973618,82.329,82.301,15.55015457]
[1770786412858,3.44973618,82.329,82.301,12.15052064]
[1770786414460,3.44973618,82.329,82.302,3.39963393]
[1770786415880,3.44973618,82.329,82.301,12.15052064]
[1770786416175,3.44973618,82.329,82.303,15.54985931]
[1770786416385,3.44973618,82.329,82.303,12.15022538]
[1770786417558,3.44973618,82.329,82.304,3.39963393]
[1770786418376,3.44973618,82.329,82.306,3.39963393]
[1770786420508,3.44973618,82.329,82.305,12.14993013]
[1770786420509,3.44973618,82.329,82.301,12.15052064]
[1770786421285,3.44973618,82.329,82.302,3.39963393]
[1770786421579,3.44973618,82.329,82.301,42.52682226]
[1770786421580,3.44973618,82.349,82.311,3.39963393]
[1770786421773,3.63033608,82.34,82.311,3.39963393]
[1770786421984,3.44973618,82.343,82.311,3.39963393]
[1770786423286,3.44973618,82.343,82.313,3.39963393]
[1770786423480,3.63033608,82.34,82.312,12.14889688]
[1770786423685,3.44973618,82.339,82.312,12.14889688]
[1770786424178,3.44973618,82.339,82.312,15.54853081]
[1770786424390,3.44973618,82.339,82.313,3.39963393]
[1770786424593,3.44973618,82.339,82.312,12.14889688]
[1770786424791,3.44973618,82.339,82.313,3.39963393]
[1770786425491,3.44973618,82.339,82.31,30.37270647]
[1770786425492,3.44973618,82.339,82.315,3.39963393]
[1770786426987,3.44973618,82.347,82.315,3.39963393]
[1770786427373,3.44973618,82.347,82.316,12.14830652]
[1770786427688,3.44973618,82.347,82.317,3.39963393]
[1770786428873,3.63033608,82.35,82.317,3.39963393]
[1770786429087,3.44973618,82.349,82.317,3.39963393]
[1770786429868,3.44973618,82.339,82.305,30.37447413]
[1770786430284,3.44973618,82.339,82.306,3.39963393]
[1770786430487,3.44973618,82.347,82.319,3.39963393]
[1770786430691,12.14358575,82.348,82.319,3.39963393]
[1770786430887,3.44973618,82.347,82.319,3.39963393]
[1770786431986,3.44973618,82.354,82.321,3.39963393]
[1770786434495,3.44973618,82.354,82.322,12.1474211]
[1770786434699,3.44973618,82.354,82.323,3.39963393]
[1770786434996,3.73033608,82.36,82.323,3.39963393]
[1770786434997,3.44973618,82.352,82.323,3.39963393]
[1770786435181,3.44973618,82.339,82.302,3.39963393]
[1770786435377,3.44973618,82.339,82.304,3.39963393]
[1770786435572,3.44973618,82.339,82.306,5.13032502]
[1770786435796,3.44973618,82.339,82.315,12.14832226]
[1770786435995,3.44973618,82.329,82.291,3.39963393]
[1770786436193,3.44973618,82.319,82.292,12.15184951]
[1770786436395,3.44973618,82.319,82.295,5.13032502]
[1770786436591,3.44973618,82.319,82.296,12.15125887]
[1770786437196,3.44973618,82.326,82.301,3.39963393]
[1770786438893,3.44973618,82.326,82.302,12.15037301]
[1770786440899,3.44973618,82.326,82.296,42.52940604]
[1770786441104,3.44973618,82.326,82.296,45.77770839]
[1770786441292,3.44973618,82.326,82.297,3.24830235]
[1770786442203,3.44973618,82.326,82.298,12.15096357]
[1770786442786,3.44973618,82.326,82.298,15.39926592]
[1770786445306,3.44973618,82.326,82.301,3.27458284]
[1770786445695,3.44973618,82.326,82.3,12.15066828]
[1770786448207,3.24955805,82.319,82.288,3.27458284]
[1770786448409,3.24955805,82.319,82.29,12.15201875]
[1770786448713,3.24955805,82.309,82.28,12.15347979]
[1770786449006,3.24955805,82.309,82.284,12.15298437]
[1770786449394,3.24955805,82.309,82.288,12.15242865]
[1770786449597,3.24955805,82.309,82.292,12.15178044]
[1770786449820,3.24955805,82.309,82.287,12.15246428]
[1770786450314,3.24955805,82.309,82.282,12.15321891]
[1770786452407,3.24955805,82.309,82.282,3.27458284]
[1770786454609,3.24955805,82.309,82.284,3.27458284]
[1770786456012,3.24955805,82.309,82.286,3.27458284]
[1770786456701,3.24955805,82.309,82.285,12.15288327]
[1770786457093,3.63394435,82.31,82.274,3.27458284]
[1770786457094,3.24955805,82.307,82.277,12.15394362]
[1770786458614,3.24955805,82.305,82.277,12.15394362]
[1770786458800,3.24955805,82.305,82.278,3.27458284]
[1770786459301,3.24955805,82.319,82.291,3.27458284]
[1770786461316,3.24955805,82.309,82.272,3.27458284]
[1770786461522,3.24955805,82.309,82.274,3.27458284]
[1770786461909,3.24955805,82.309,82.287,12.15246208]
[1770786463015,3.24955805,82.309,82.281,12.15347407]
[1770786463616,3.24955805,82.309,82.282,3.27458284]
[1770786464930,3.24955805,82.309,82.283,12.15317866]
[1770786465109,3.24955805,82.299,82.269,3.27458284]
[1770786465424,3.24955805,82.299,82.274,3.27458284]
[1770786465629,3.24955805,82.299,82.276,12.15407337]
[1770786466628,3.24955805,82.299,82.265,3.27458284]
[1770786467126,3.24955805,82.297,82.266,12.15569007]
[1770786467629,3.24955805,82.297,82.267,3.27458284]
[1770786467923,3.24955805,82.319,82.281,3.27458284]
[1770786468128,3.24955805,82.309,82.281,3.27458284]
[1770786468622,3.24955805,82.319,82.281,2.77458284]
[1770786469427,15.78171193,82.32,82.282,12.15332636]
[1770786470031,3.24955805,82.331,82.3,3.63394435]
[1770786470732,3.24955805,82.331,82.301,3.14548285]
[1770786471424,3.24955805,82.331,82.302,12.15037301]
[1770786471723,3.24955805,82.331,82.303,3.14623765]
[1770786471958,3.24955805,82.331,82.286,5.13032502]
[1770786471959,3.44882672,82.319,82.286,5.13032502]
[1770786472228,3.44882672,82.319,82.274,3.14623765]
[1770786472229,3.44882672,82.299,82.272,12.15480357]
[1770786472614,3.44882672,82.292,82.272,12.15480357]
[1770786472929,3.63394435,82.31,82.273,3.14705167]
[1770786473125,3.63394435,82.31,82.272,12.15480357]
[1770786473126,3.44882672,82.325,82.29,3.63394435]
[1770786473322,3.44882672,82.325,82.291,3.14705167]
[1770786473526,3.44882672,82.319,82.292,12.15184951]
[1770786473727,3.44882672,82.319,82.287,12.15253518]
[1770786474638,3.44882672,82.318,82.288,3.14860116]
[1770786476733,3.44882672,82.318,82.288,15.30090069]
[1770786478225,3.44882672,82.318,82.289,3.15069627]
[1770786479316,3.63336444,82.33,82.291,3.15139493]
[1770786479719,3.44882672,82.329,82.291,3.15139493]
[1770786480036,3.44882672,82.319,82.284,8.28240274]
[1770786480234,3.44882672,82.319,82.285,12.15288327]
[1770786480554,3.44882672,82.319,82.285,15.30563973]
[1770786480723,3.44882672,82.319,82.286,3.15275646]
[1770786481642,12.14667315,82.328,82.291,3.15343727]
[1770786482152,3.44882672,82.33,82.293,3.15343727]
[1770786483131,7.08219116,82.33,82.293,3.15343727]
[1770786483333,3.44882672,82.329,82.293,3.15343727]
[1770786485055,3.44882672,82.329,82.295,3.15532673]
[1770786486452,3.44882672,82.319,82.294,12.15155418]
[1770786487352,3.44882672,82.299,82.274,33.54259836]
[1770786487537,3.44882672,82.299,82.286,12.15260962]
[1770786488250,3.44882672,82.299,82.288,12.1524402]
[1770786488456,3.44882672,82.309,82.288,12.1524402]
[1770786488854,3.44882672,82.319,82.289,3.15782955]
[1770786489246,3.44882672,82.319,82.29,12.15214485]
[1770786489843,3.44882672,82.319,82.29,15.3105886]
[1770786490052,3.44882672,82.319,82.291,3.15844375]
[1770786491554,3.44882672,82.326,82.293,3.15959575]
[1770786492757,3.63336444,82.32,82.293,3.15959575]
[1770786493259,3.44882672,82.326,82.293,3.15959575]
[1770786493558,3.44882672,82.326,82.295,3.16080978]
[1770786494960,3.63336444,82.34,82.301,3.16133629]
[1770786495166,3.44882672,82.339,82.301,3.16133629]
[1770786495865,3.44882672,82.341,82.311,3.16189807]
[1770786497343,3.44882672,82.341,82.313,3.16245917]
[1770786501854,33.34,82.36,82.303,42.52]
[1770786501855,3.32946889,82.339,82.314,12.14860169]
[1770786503969,3.32946889,82.339,82.304,42.52527216]
[1770786504265,3.33779609,82.339,82.315,3.1665213]
[1770786504640,3.33779609,82.339,82.304,42.52527216]
[1770786504864,3.33779609,82.319,82.304,12.15007776]
[1770786505463,3.33779609,82.319,82.297,12.15096447]
[1770786505767,3.33779609,82.309,82.286,42.58]
[1770786505949,3.33779609,82.299,82.286,42.58]
[1770786506349,3.33779609,82.299,82.273,12.15465015]
[1770786506673,3.33779609,82.299,82.277,12.15401414]
[1770786507964,3.33779609,82.299,82.281,12.15335734]
[1770786508446,3.33779609,82.309,82.282,3.16862197]
[1770786509255,3.33779609,82.315,82.282,3.16862197]
[1770786509868,3.63336444,82.32,82.282,3.16862197]
[1770786510050,3.63336444,82.32,82.281,42.53704251]
[1770786510051,3.63336444,82.32,82.285,3.16945833]
[1770786510251,3.63336444,82.32,82.287,3.16945833]
[1770786510656,3.33779609,82.322,82.291,3.16980991]
[1770786511564,3.33779609,82.322,82.293,3.17020221]
[1770786512873,3.33779609,82.322,82.294,12.15155418]
[1770786513179,3.33779609,82.322,82.295,3.17054548]
[1770786513682,3.33779609,82.329,82.295,3.17054548]
[1770786514151,3.33779609,82.319,82.294,12.15155418]
[1770786514344,3.33779609,82.319,82.295,3.17128897]